Workbook

Sheet Feuil1
B2: Electronic temperature, density and excitation class derived from planetary nebula spectrum | S2: F. Teyssier 2011
B4: 1 | C4: 2 | D4: 3 | E4: 4 | F4: 5 | G4: 6 | I4: Balmer Decrement
B5: l | C5: Line | D5: I0 Gauss | E5: I0 I(Hb) =100 | F5: Ic | G5: D% | I5: n | J5: Line | K5: Measured value | L5: Theorical value | M5: Dereddened value
B7: 4340.47 | C7: H I | D7: 23.7 | E7: =+D7/D$10*100 -> 43.8077634 | F7: =+E7*10^(J$11*((2.5634*(B7/10000)^2-4.873*(B7/10000)+1.7636))) -> 45.46245001 | G7: =-(E7-F7)/F7*100 -> 3.6396776 | I7: 3 | J7: Ha | K7: =+E16/100 -> 3.097966728 | L7: 2.86 | M7: =+F16/F10 -> 2.821895499
B8: 4363.21 | C8: [O III] | D8: 7 | E8: 12.93900185 | F8: 13.40498991 | G8: =+(E8-F8)/F8*100 -> -3.476228398 | I8: 4 | J8: Hb | K8: 1 | L8: 1 | M8: =+F10/F10 -> 1
B9: 4685.68 | C9: He II | D9: 16.6 | E9: 30.68391867 | F9: 31.05907897 | G9: -1.207892555 | I9: 5 | J9: Hg | K9: =+E7/100 -> 0.438077634 | L9: 0.469 | M9: =+F7/F10 -> 0.4545642068
B10: 4861.33 | C10: H I | D10: 54.1 | E10: 100 | F10: 100.013264 | G10: -0.01326222655
B11: 4958.92 | C11: [O III] | D11: 179 | E11: 330.8687616 | F11: 328.7735197 | G11: 0.6372903187 | I11: c(Hb) | J11: =3.08*LOG(E16)-7.55 -> 0.1225163875 | L11: E(B-V) | M11: =+J11/1.46 -> 0.0839153339
B12: 5006.85 | C12: [O III] | D12: 552.9 | E12: 1021.996303 | F12: 1012.346048 | G12: 0.9532565768
B13: 5754.57 | C13: [N II] | D13: 0.8 | E13: 1.478743068 | F13: 1.400885506 | G13: 5.557739165 | I13: l 5007/l 4959 | J13: =+F12/F11 -> 3.079159321 | K13: l 6583/l 6548 | L13: =+F17/F15 -> 3.028343131 | M13: l 6583/l 6562 | N13: =+F17/F16 -> 0.2748198545
B14: 5875.65 | C14: HeI | D14: 6 | E14: 11.09057301 | F14: 10.43897097 | G14: 6.242014129 | L14: 1 | M14: 2 | N14: 3 | O14: 4 | P14: 5
B15: 6548.06 | C15: [N II] | D15: 15.2 | E15: 28.0961183 | F15: 25.61188547 | G15: 9.699531237 | I15: R[OIII] | J15: =+(F12+F11)/E8 -> 103.6493837 | K15: T(K) | L15: =3.29*10000/LN($J15/7.9) -> 12780.91234 | M15: =14320/(LOG(RO)-0.89) -> 12722.47988 | N15: =-32990/(LN(1/(RO*0.132))) -> 12610.56445 | O15: =3.29*10000/LN($J15/8.32) -> 13043.3836 | P15: =14516/(LOG(J15)-0.871411) -> 12687.08419
B16: 6562.82 | C16: H I | D16: 167.6 | E16: 309.7966728 | F16: 282.2269795 | G16: 9.768624328 | L16: 6 | M16: 7 | N16: 8 | O16: 4b
B17: 6583.39 | C17: [N II] | D17: 46.1 | E17: 85.21256932 | F17: 77.56157744 | G17: 9.864409841 | I17: R[NII] | J17: =+(F17+F15)/F13 -> 73.6487475 | K17: T(K) | L17: =2.5*10000/(LN($J$17/8.23)) -> 11407.60167 | M17: =10860/(LOG(J17)-0.81) -> 10272.75425 | N17: =10697.5/(LOG(J17)-0.888527) -> 10931.00412 | O17: =2.5*10000/(LN($J$17/6.91)) -> 10564.84969
B18: 6716.5 | C18: [S II] | D18: 3.9 | E18: 7.208872458 | F18: 6.525642531 | G18: 10.46992575 | L18: 9
B19: 6730.7 | C19: [S II] | D19: 6.1 | E19: 11.2754159 | F19: 10.2009456 | G19: 10.53304604 | I19: R[SII] | J19: =+F18/F19 -> 0.6397095708 | K19: Ne (cm-3) | L19: =100*SQRT(L17)*(J19-1.49)/(5.62-12.8*J19) -> 3536.076656
L20: 1/6 | M20: 2/7 | O20: 4/4b
B21: References | K21: T[OIII]/T[NII] | L21: =+L15/L17 -> 1.120385574 | M21: =+N15/M17 -> 1.227573847 | O21: =+O15/O17 -> 1.234601909
B22: 1,6 | C22: Osterbrock & Ferland, University Science Books, 2006
B23: 2,7 | C23: Kaler, A.J., 308, 1986 | I23: Excitation Class | L23: Class | M23: Scale
B24: 3 | C24: Kwok, Cambridge astrophysics series, 2007
B25: 4,4b | C25: Acker, EDP Sciences, 2011 | I25: Gurzadyan 1998 10 | K25: =IF(F9>1,LOG((F12+F11)/F9),(F12+F11)/F10) -> 1.635278926 | L25: =IF(F9>1,VLOOKUP(K25,Feuil3!U7:V15,2,TRUE),VLOOKUP(K25,Feuil3!U3:V5,2)) -> 9 | M25: [1-12] | N25: =CONCATENATE(VLOOKUP(L25,Feuil3!X3:Y14,2)," excitation") -> high excitation
B26: 5,8 | C26: McKenna & al., P.A.S.P, 108, 1996
B27: 9 | C27: Acker & Jaschek, Masson, 1995 | I27: Dopita 1990 | J27: 11 | K27: =+IF($F$9>1,5.54*($F$9/$F$10+0.78)) -> 6.041644775 | L27: =+INT(K27) -> 6 | M27: [1-10] | N27: =10^(4.489+0.1124*K27-0.00172*K27^2) -> 127437.8223
B28: 10 | C28: Gurzadyan & Egikyan, A.P. Supp. Ser., 181,1991 | N28: T* [K]
B29: 11 | C29: Dopita & Meatheringham, A.J., 357, 1990 | I29: Reid 2011 | J29: 12 | K29: =+IF($F$9>1,5.54*(F9/F10+LOG((F11+F12)/F10))) -> 7.966295611 | L29: =+INT(K29) -> 7 | M29: [1-10] | N29: =10^(4.439+0.1174*K29-0.00172*K29^2) -> 184114.7979
B30: 12
B31: 12 | C31: Kaler & Jacony, A.J., 345, 1989 | N31: =10^(4.905+1.011162*0.01*F9-1.10692*0.0001*F9^2+6.20572*0.0000001*F9^3) -> 135166.8252 | O31: Kaler, 1989 | Q31: =+I25 -> Gurzadyan 1998 10 | R31: =+I27 -> Dopita 1990 | S31: Reid 2011

Sheet Feuil2
E2: This Work | F2: [1] | G2: [2] | H2: [3] | I2: [4]
B4: 4340.47 | C4: H I | E4: =+Feuil1!F7 -> 45.46245001 | F4: 46 | G4: 48 | H4: 48 | I4: 47.33333333
B5: 4363.21 | C5: [O III] | E5: =+Feuil1!F8 -> 13.40498991 | F5: 14 | G5: 25 | H5: 19.5 | I5: 19.5
B6: 4685.68 | C6: He II | E6: =+Feuil1!F9 -> 31.05907897 | F6: 38 | G6: 38 | H6: 35 | I6: 37
B7: 5006.85 | C7: [O III] | E7: =+Feuil1!F12 -> 1012.346048 | F7: 950 | G7: 1200 | H7: 1260 | I7: 1136.666667
B8: 5754.57 | C8: [N II] | E8: =+Feuil1!F13 -> 1.400885506 | F8: 2 | G8: 1.6 | H8: 1.51 | I8: 1.703333333
B9: 5875.65 | C9: HeI | E9: =+Feuil1!F14 -> 10.43897097 | F9: 6.8 | G9: 7.8 | H9: 7.45 | I9: 7.35
B10: 6562.82 | C10: H I | E10: =+Feuil1!F16 -> 282.2269795 | F10: 275 | G10: 295 | H10: 283 | I10: 284.3333333
B11: 6583.39 | C11: [N II] | E11: =+Feuil1!F17 -> 77.56157744 | F11: 95 | G11: 95 | H11: 85.5 | I11: 91.83333333
B12: 6716.5 | C12: [S II] | E12: =+Feuil1!F18 -> 6.525642531 | F12: 8 | G12: 6.7 | H12: 4.8 | I12: 6.5
B13: 6730.7 | C13: [S II] | E13: =+Feuil1!F19 -> 10.2009456 | F13: 10 | G13: 7.9 | H13: 7.8 | I13: 8.566666667
B15: Table 5 : Line intensities - Comparison with published values
B16: [1] : Henry & al. (2000) [2] : Barker (1991) [3] Aller & Czyzak (1979)
B17: [4] Average of [1], [2] and [3] as computed in Pottasch & al. (2008)

Sheet Feuil3
A2: Te | B2: R[OIII] | D2: Te | E2: R[NII] | H2: Ne | J2: R[SII] | AB2: Low Excitation
J3: 5000 | K3: 10000 | L3: 15000 | M3: 20000 | U3: 2.5 | V3: 1 | X3: 1 | Y3: low | AA3: R1 | AB3: 1-5 | AC3: 5-10 | AD3: 10-20
U4: 7.5 | V4: 2 | X4: 2 | Y4: low | AA4: EC | AB4: 1 | AC4: 2 | AD4: 3
A5: 6000 | B5: =8.32*EXP((3.29*10000)/A5) -> 2002.187453 | D5: =+A5 -> 6000 | E5: =8.23*EXP((2.5*10000)/D5) -> 530.8357659 | G5: 1 | H5: =10^(G5) -> 10 | I5: =0.01*H5/SQRT(J$3) -> 0.001414213562 | J5: =1.49*(1+3.77*0.01*$H5/SQRT(J$3))/(1+12.8*0.01*$H5/SQRT(J$3)) -> 1.471310497 | K5: =1.49*(1+3.77*0.01*$H5/SQRT(K$3))/(1+12.8*0.01*$H5/SQRT(K$3)) -> 1.476715344 | L5: =1.49*(1+3.77*0.01*$H5/SQRT(L$3))/(1+12.8*0.01*$H5/SQRT(L$3)) -> 1.479127909 | M5: =1.49*(1+3.77*0.01*$H5/SQRT(M$3))/(1+12.8*0.01*$H5/SQRT(M$3)) -> 1.480571428 | U5: 15 | V5: 3 | X5: 3 | Y5: low
A6: 6100 | B6: 1830.061548 | D6: 6100 | E6: 495.7871346 | G6: 1.1 | H6: 12.58925412 | I6: 0.001780389391 | J6: =1.49*(1+3.77*I6)/(1+12.8*I6) -> 1.466579133 | K6: =1.49*(1+3.77*0.01*$H6/SQRT(K$3))/(1+12.8*0.01*$H6/SQRT(K$3)) -> 1.473330158 | L6: 1.476349406 | M6: 1.478157635 | X6: 4 | Y6: medium | AB6: Medium Excitation | AG6: High Excitation
A7: 6200 | B7: 1677.590586 | D7: 6200 | E7: 464.0740264 | G7: 1.2 | H7: 15.84893192 | I7: 0.002241377448 | J7: 1.460684004 | K7: 1.469099734 | L7: 1.472872512 | M7: 1.475134709 | U7: 1 | V7: 12 | X7: 5 | Y7: medium | AA7: R2 | AB7: 2.7 | AC7: 2.5 | AD7: 2.3 | AE7: 2.1 | AF7: 1.9 | AG7: 1.7 | AH7: 1.5 | AI7: 1.2 | AJ7: 0.9
A8: 6300 | B8: 1542.075441 | D8: 6300 | E8: 435.3019738 | G8: 1.3 | H8: 19.95262315 | I8: 0.002821727026 | J8: 1.453357951 | K8: 1.463822891 | L8: 1.468528358 | M8: 1.471353984 | U8: 1.3 | V8: 11 | X8: 6 | Y8: medium | AA8: EC | AB8: 4 | AC8: 5 | AD8: 6 | AE8: 7 | AF8: 8 | AG8: 9 | AH8: 10 | AI8: 11 | AJ8: 12
A9: 6400 | B9: 1421.243192 | D9: 6400 | E9: 409.1312522 | G9: 1.4 | H9: 25.11886432 | I9: 0.003552343859 | J9: 1.44428303 | K9: 1.457256108 | L9: 1.46311102 | M9: 1.46663338 | U9: 1.4 | V9: 10 | X9: 7 | Y9: medium
A10: 6500 | B10: 1313.171807 | D10: 6500 | E10: 385.2682561 | G10: 1.5 | H10: 31.6227766 | I10: 0.004472135955 | J10: 1.433086662 | K10: 1.449107706 | L10: 1.456371517 | M10: 1.460751517 | U10: 1.6 | V10: 9 | X10: 8 | Y10: medium
A11: 6600 | B11: 1216.229453 | D11: 6600 | E11: 363.4583837 | G11: 1.6 | H11: 39.81071706 | I11: 0.005630085599 | J11: 1.419340939 | K11: 1.439033035 | L11: 1.448012059 | M11: 1.453441731 | U11: 1.8 | V11: 8 | X11: 9 | Y11: high
A12: 6700 | B12: 1129.025348 | D12: 6700 | E12: 343.4801417 | G12: 1.7 | H12: 50.11872336 | I12: 0.007087857831 | J12: 1.402567295 | K12: 1.426631946 | L12: 1.437681431 | M12: 1.444386627 | U12: 2 | V12: 7 | X12: 10 | Y12: high
A13: 6800 | B13: 1050.369776 | D13: 6800 | E13: 325.1402419 | G13: 1.8 | H13: 63.09573445 | I13: 0.008923084338 | J13: 1.382249367 | K13: 1.411450444 | L13: 1.424972856 | M13: 1.433214197 | U13: 2.2 | V13: 6 | X13: 11 | Y13: high
A14: 6900 | B14: 979.2414064 | D14: 6900 | E14: 308.2695062 | G14: 1.9 | H14: 79.43282347 | I14: 0.01123349763 | J14: 1.357857296 | K14: 1.392989015 | L14: 1.409426297 | M14: 1.419497093 | U14: 2.4 | V14: 5 | X14: 12 | Y14: high
A15: 7000 | B15: 914.7604748 | D15: 7000 | E15: 292.7194337 | G15: 2 | H15: 100 | I15: 0.01414213562 | J15: 1.328886472 | K15: 1.370720745 | L15: 1.390537786 | M15: 1.402757219 | U15: 2.8 | V15: 4
A16: 7100 | B16: 856.1666757 | D16: 7100 | E16: 278.3593139 | G16: 2.1 | H16: 125.8925412 | I16: 0.01780389391 | J16: 1.294912425 | K16: 1.344122432 | L16: 1.367778926 | M16: 1.382478503
A17: 7200 | B17: 802.8008689 | D17: 7200 | E17: 265.0737892 | G17: 2.2 | H17: 158.4893192 | I17: 0.02241377448 | J17: 1.255660521 | K17: 1.312721262 | L17: 1.340629762 | M17: 1.358131052
A18: 7300 | B18: 754.0898836 | D18: 7300 | E18: 252.7607904 | G18: 2.3 | H18: 199.5262315 | I18: 0.02821727026 | J18: 1.211084198 | K18: 1.276157454 | L18: 1.3086274 | M18: 1.329209744
A19: 7400 | B19: 709.5338469 | D19: 7400 | E19: 241.3297832 | G19: 2.4 | H19: 251.1886432 | I19: 0.03552343859 | J19: 1.161439331 | K19: 1.234259331 | L19: 1.27143042 | M19: 1.295288953
A20: 7500 | B20: 668.6955815 | D20: 7500 | E20: 230.7002729 | G20: 2.5 | H20: 316.227766 | I20: 0.04472135955 | J20: 1.10733675 | K20: 1.187121589 | L20: 1.228894945 | M20: 1.256092107
A21: 7600 | B21: 631.1917021 | D21: 7600 | E21: 220.8005265 | G21: 2.6 | H21: 398.1071706 | I21: 0.05630085599 | J21: 1.049753171 | K21: 1.135171335 | L21: 1.18115237 | M21: 1.211569897
A22: 7700 | B22: 596.6851143 | D22: 7700 | E22: 211.5664771 | G22: 2.7 | H22: 501.1872336 | I22: 0.07087857831 | J22: 0.9899857877 | K22: 1.079202369 | L22: 1.128672666 | M22: 1.161974758
A23: 7800 | B23: 564.8786746 | D23: 7800 | E23: 202.9407815 | G23: 2.8 | H23: 630.9573445 | I23: 0.08923084338 | J23: 0.9295483318 | K23: 1.020359455 | L23: 1.072293547 | M23: 1.107913723
A24: 7900 | B24: 535.5098142 | D24: 7900 | E24: 194.8720086 | G24: 2.9 | H24: 794.3282347 | I24: 0.1123349763 | J24: 0.8700233672 | K24: 0.9600632032 | L24: 1.013197878 | M24: 1.050359867
A25: 8000 | B25: 508.3459678 | D25: 8000 | E25: 187.3139366 | G25: 3 | H25: 1000 | I25: 0.1414213562 | J25: 0.8129000008 | K25: 0.8998815789 | L25: 0.9528315181 | M25: 0.9906075172
A26: 8100 | B26: 483.180674 | D26: 8100 | E26: 180.2249455 | G26: 3.1 | H26: 1258.925412 | I26: 0.1780389391 | J26: 0.7594313129 | K26: =1.49*(1+3.77*0.01*$H26/SQRT(K$3))/(1+12.8*0.01*$H26/SQRT(K$3)) -> 0.8413707342 | L26: 0.8927696742 | M26: 0.9301688755
A27: 8200 | B27: 459.8302395 | D27: 8200 | E27: 173.5674878 | G27: 3.2 | H27: 1584.893192 | I27: 0.2241377448 | J27: 0.7105389375 | K27: 0.7859183501 | L27: 0.8345561884 | M27: 0.8706266279
A28: 8300 | B28: 438.1308791 | D28: 8300 | E28: 167.307629 | G28: 3.3 | H28: 1995.262315 | I28: 0.2821727026 | J28: 0.6667768895 | K28: 0.7346218036 | L28: 0.7795494892 | M28: 0.8134716321
A29: 8400 | B29: 417.9362553 | D29: 8400 | E29: 161.4146453 | G29: 3.4 | H29: 2511.886432 | I29: 0.3552343859 | J29: 0.6283501043 | K29: 0.688221649 | L29: 0.7288066075 | M29: 0.7599599832
A30: 8500 | B30: 399.1153569 | D30: 8500 | E30: 155.8606728 | G30: 3.5 | H30: 3162.27766 | I30: 0.4472135955 | J30: 0.5951716433 | K30: 0.6470939758 | L30: 0.6830238446 | M30: 0.7110170164
A31: 8600 | B31: 381.5506664 | D31: 8600 | E31: 150.6203992 | G31: 3.6 | H31: 3981.071706 | I31: 0.5630085599 | J31: 0.5669387144 | K31: 0.6112905046 | L31: 0.6425356485 | M31: 0.6672005214
A32: 8700 | B32: 365.1365708 | D32: 8700 | E32: 145.670793 | G32: 3.7 | H32: 5011.872336 | I32: 0.7087857831 | J32: 0.5432102439 | K32: 0.5806075395 | L32: 0.6073592225 | M32: 0.6287187872
A33: 8800 | B33: 349.7779828 | D33: 8800 | E33: 140.9908656 | G33: 3.8 | H33: 6309.573445 | I33: 0.8923084338 | J33: 0.5234745452 | K33: 0.5546645881 | L33: 0.5772655839 | M33: 0.5954875096
A34: 8900 | B34: 335.3891396 | D34: 8900 | E34: 136.5614612 | G34: 3.9 | H34: 7943.282347 | I34: 1.123349763 | J34: 0.5072017054 | K34: 0.5329780651 | L34: 0.5518582451 | M34: 0.5672057152
A35: 9000 | B35: 321.8925552 | D35: 9000 | E35: 132.3650707 | G35: 4 | H35: 10000 | I35: 1.414213562 | J35: 0.4938799413 | K35: 0.5150217391 | L35: 0.53064565 | M35: 0.5434333862
A36: 9100 | B36: 309.2181053 | D36: 9100 | E36: 128.3856676 | G36: 4.1 | H36: 12589.25412 | I36: 1.780389391 | J36: 0.4830379148 | K36: 0.5002710654 | L36: 0.5130997538 | M36: 0.5236592681
A37: 9200 | B37: =8.32*EXP((3.29*10000)/A37) -> 297.3022242 | D37: =+A37 -> 9200 | E37: =8.23*EXP((2.5*10000)/D37) -> 124.6085619 | G37: 4.2 | H37: =10^(G37) -> 15848.93192 | I37: =0.01*H37/SQRT(J$3) -> 2.241377448 | J37: 0.474256126 | K37: 0.488232244 | L37: 0.4986984339 | M37: 0.507353424
A38: 9300 | B38: 286.0872011 | D38: 9300 | E38: 121.0202707 | G38: 4.3 | H38: 19952.62315 | I38: 2.821727026 | J38: =1.49*(1+3.77*I38)/(1+12.8*I38) -> 0.4671705839 | K38: 0.478458717 | L38: 0.4869528825 | M38: 0.4940037487
A39: 9400 | B39: 275.5205603 | D39: 9400 | E39: 117.6084025 | G39: 4.4 | H39: 25118.86432 | I39: 3.552343859 | J39: 0.4614714981 | K39: 0.4705583614 | L39: 0.4774228198 | M39: 0.4831384134
A40: 9500 | B40: 265.5545151 | D40: 9500 | E40: 114.3615547 | G40: 4.5 | H40: 31622.7766 | I40: 4.472135955 | J40: 0.4568990926 | K40: 0.4641943919 | L40: 0.4697227864 | M40: 0.4743373549
A41: 9600 | B41: 256.1454861 | D41: 9600 | E41: 111.2692212 | G41: 4.6 | H41: 39810.71706 | I41: 5.630085599 | J41: 0.4532380274 | K41: 0.4590824056 | L41: 0.463522469 | M41: 0.4672360107
A42: 9700 | B42: 247.2536746 | D42: 9700 | E42: 108.3217107 | G42: 4.7 | H42: 50118.72336 | I42: 7.087857831 | J42: 0.4503113962 | K42: 0.4549853571 | L42: 0.4585434167 | M42: 0.4615240499
A43: 9800 | B43: 238.8426846 | D43: 9800 | E43: 105.5100726 | G43: 4.8 | H43: 63095.73445 | I43: 8.923084338 | J43: 0.447974889 | K43: 0.4517076753 | L43: 0.454553859 | M43: 0.4569412084
A44: 9900 | B44: 230.879188 | D44: 9900 | E44: 102.8260309 | G44: 4.9 | H44: 79432.82347 | I44: 11.23349763 | J44: 0.446111438 | K44: 0.4490892886 | L44: 0.4513627791 | M44: 0.453271719
A45: 10000 | B45: 223.3326256 | D45: 10000 | E45: 100.2619253 | G45: 5 | H45: 100000 | I45: 14.14213562 | J45: 0.4446264898 | K45: 0.447 | L45: 0.448813963 | M45: 0.4503383099
A46: 10100 | B46: 216.1749422 | D46: 10100 | E46: 97.8106571 | G46: 5.1 | H46: 125892.5412 | I46: 17.80389391 | J46: 0.4434439395 | K46: =1.49*(1+3.77*0.01*$H46/SQRT(K$3))/(1+12.8*0.01*$H46/SQRT(K$3)) -> 0.4453344325 | L46: 0.4467804341 | M46: 0.4479963636
A47: 10200 | B47: 209.3803493 | D47: 10200 | E47: 95.4656414 | G47: 5.2 | H47: 158489.3192 | I47: 22.41377448 | J47: 0.442502698 | K47: 0.4440076294 | L47: 0.4451594751 | M47: 0.446128557
A48: 10300 | B48: 202.9251135 | D48: 10300 | E48: 93.22076345 | G48: 5.3 | H48: 199526.2315 | I48: 28.21727026 | J48: 0.4417538359 | K48: 0.4429513081 | L48: 0.4438683074 | M48: 0.4446401267
A49: 10400 | B49: 196.7873676 | D49: 10400 | E49: 91.07033941 | G49: 5.4 | H49: 251188.6432 | I49: 35.52343859 | J49: 0.4411582301 | K49: 0.4421107206 | L49: 0.4428404201 | M49: 0.4434547962
A50: 10500 | B50: 190.94694 | D50: 10500 | E50: 89.00908077 | G50: 5.5 | H50: 316227.766 | I50: 44.72135955 | J50: 0.440684641 | K50: 0.4414420558 | L50: 0.4420224995 | M50: 0.4425113373
A51: 10600 | B51: 185.3852032 | D51: 10600 | E51: 87.03206211 | G51: 5.6 | H51: 398107.1706 | I51: 56.30085599 | J51: 0.4403081509 | K51: 0.4409103079 | L51: 0.441371891 | M51: 0.4417607081
A52: 10700 | B52: 180.0849367 | D52: 10700 | E52: 85.13469189 | G52: 5.7 | H52: 501187.2336 | I52: 70.87857831 | J52: 0.4400089017 | K52: 0.4404875411 | L52: 0.4408545183 | M52: 0.4411636951
A53: 10800 | B53: 175.0302036 | D53: 10800 | E53: 83.31268592 | G53: 5.8 | H53: 630957.3445 | I53: 89.23084338 | J53: 0.4397710779 | K53: 0.4401514826 | L53: 0.4404431906 | M53: 0.440688986
A54: 10900 | B54: 170.2062401 | D54: 10900 | E54: 81.56204316 | G54: 5.9 | H54: 794328.2347 | I54: 112.3349763 | J54: 0.439582091 | K54: 0.4398843885 | L54: 0.4401162315 | M54: 0.4403116048
A55: 11000 | B55: 165.5993548 | D55: 11000 | E55: 79.87902378 | G55: 6.9 | H55: 7943282.347 | I55: 1123.349763 | J55: 0.4389246611 | K55: 0.4389549365 | L55: 0.4389781665 | M55: 0.4389977495
A56: 11100 | B56: 161.1968387 | D56: 11100 | E56: 78.26012914 | G56: 7.9 | H56: 79432823.47 | I56: 11233.49763 | J56: 0.4388588728 | K56: 0.4388619008 | L56: 0.4388642243 | M56: 0.438866183
A57: 11200 | B57: 156.9868831 | D57: 11200 | E57: 76.70208347 | G57: 8.9 | H57: 794328234.7 | I57: 112334.9763 | J57: 0.4388522935 | K57: 0.4388525963 | L57: 0.4388528287 | M57: 0.4388530246
A58: 11300 | B58: 152.9585056 | D58: 11300 | E58: 75.20181717 | G58: 9.9 | H58: 7943282347 | I58: 1123349.763 | J58: 0.4388516356 | K58: 0.4388516659 | L58: 0.4388516891 | M58: 0.4388517087
A59: 11400 | B59: 149.1014829 | D59: 11400 | E59: 73.75645161 | G59: 10.9 | H59: 7.943282347e+10 | I59: 11233497.63 | J59: 0.4388515698 | K59: 0.4388515728 | L59: 0.4388515752 | M59: 0.4388515771
A60: 11500 | B60: 145.4062894 | D60: 11500 | E60: 72.36328505 | G60: 11.9 | H60: 7.943282347e+11 | I60: 112334976.3 | J60: 0.4388515632 | K60: 0.4388515635 | L60: 0.4388515638 | M60: 0.438851564
A61: 11600 | B61: 141.8640424 | D61: 11600 | E61: 71.01977991 | G61: 12.9 | H61: 7.943282347e+12 | I61: 1123349763 | J61: 0.4388515626 | K61: 0.4388515626 | L61: 0.4388515626 | M61: 0.4388515626
A62: 11700 | B62: 138.4664512 | D62: 11700 | E62: 69.72355099 | G62: 13.9 | H62: 7.943282347e+13 | I62: 1.123349763e+10 | J62: 0.4388515625 | K62: 0.4388515625 | L62: 0.4388515625 | M62: 0.4388515625
A63: 11800 | B63: 135.2057711 | D63: 11800 | E63: 68.47235468 | G63: 14.9 | H63: 794328234724287 | I63: 1.123349763e+11 | J63: 0.4388515625 | K63: 0.4388515625 | L63: 0.4388515625 | M63: 0.4388515625
A64: 11900 | B64: 132.0747615 | D64: 11900 | E64: 67.26407907 | G64: 15.9 | H64: 7943282347242850 | I64: 1.123349763e+12 | J64: 0.4388515625 | K64: 0.4388515625 | L64: 0.4388515625 | M64: 0.4388515625
A65: 12000 | B65: 129.0666479 | D65: 12000 | E65: 66.09673482 | G65: 16.9 | H65: 7.943282347e+16 | I65: 1.123349763e+13 | J65: 0.4388515625 | K65: 0.4388515625 | L65: 0.4388515625 | M65: 0.4388515625
A66: 12100 | B66: 126.1750867 | D66: 12100 | E66: 64.96844673 | G66: 17.9 | H66: 7.943282347e+17 | I66: 1.123349763e+14 | J66: 0.4388515625 | K66: =1.49*(1+3.77*0.01*$H66/SQRT(K$3))/(1+12.8*0.01*$H66/SQRT(K$3)) -> 0.4388515625 | L66: 0.4388515625 | M66: 0.4388515625
A67: 12200 | B67: 123.3941331 | D67: 12200 | E67: 63.87744608 | G67: 18.9 | H67: 7.943282347e+18 | I67: 1.123349763e+15 | J67: 0.4388515625 | K67: 0.4388515625 | L67: 0.4388515625 | M67: 0.4388515625
A68: 12300 | B68: 120.7182119 | D68: 12300 | E68: 62.82206341 | G68: 19.9 | H68: 7.943282347e+19 | I68: 1.123349763e+16 | J68: 0.4388515625 | K68: 0.4388515625 | L68: 0.4388515625 | M68: 0.4388515625
A69: 12400 | B69: =8.32*EXP((3.29*10000)/A69) -> 118.142091 | D69: =+A69 -> 12400 | E69: =8.23*EXP((2.5*10000)/D69) -> 61.80072198 | G69: 20.9 | H69: =10^(G69) -> 7.943282347e+20 | I69: =0.01*H69/SQRT(J$3) -> 1.123349763e+17 | J69: 0.4388515625 | K69: 0.4388515625 | L69: 0.4388515625 | M69: 0.4388515625
A70: 12500 | B70: 115.6608561 | D70: 12500 | E70: 60.81193169 | G70: 21.9 | H70: 7.943282347e+21 | I70: 1.123349763e+18 | J70: =1.49*(1+3.77*I70)/(1+12.8*I70) -> 0.4388515625 | K70: 0.4388515625 | L70: 0.4388515625 | M70: 0.4388515625
A71: 12600 | B71: 113.2698886 | D71: 12600 | E71: 59.85428343 | G71: 22.9 | H71: 7.943282347e+22 | I71: 1.123349763e+19 | J71: 0.4388515625 | K71: 0.4388515625 | L71: 0.4388515625 | M71: 0.4388515625
A72: 12700 | B72: 110.9648446 | D72: 12700 | E72: 58.92644385 | G72: 23.9 | H72: 7.943282347e+23 | I72: 1.123349763e+20 | J72: 0.4388515625 | K72: 0.4388515625 | L72: 0.4388515625 | M72: 0.4388515625
A73: 12800 | B73: 108.7416358 | D73: 12800 | E73: 58.02715059 | G73: 24.9 | H73: 7.943282347e+24 | I73: 1.123349763e+21 | J73: 0.4388515625 | K73: 0.4388515625 | L73: 0.4388515625 | M73: 0.4388515625
A74: 12900 | B74: 106.5964119 | D74: 12900 | E74: 57.15520778
A75: 13000 | B75: 104.5255444 | D75: 13000 | E75: 56.30948187
A76: 13100 | B76: 102.5256116 | D76: 13100 | E76: 55.48889781
A77: 13200 | B77: 100.5933847 | D77: 13200 | E77: 54.69243547
A78: 13300 | B78: 98.72581529 | D78: 13300 | E78: 53.9191263
A79: 13400 | B79: 96.92002321 | D79: 13400 | E79: 53.16805024
A80: 13500 | B80: 95.17328588 | D80: 13500 | E80: 52.43833284
A81: 13600 | B81: 93.48302807 | D81: 13600 | E81: 51.72914257
A82: 13700 | B82: 91.8468126 | D82: 13700 | E82: 51.03968835
A83: 13800 | B83: 90.26233158 | D83: 13800 | E83: 50.36921715
A84: 13900 | B84: 88.72739837 | D84: 13900 | E84: 49.71701187
A85: 14000 | B85: 87.23994011 | D85: 14000 | E85: 49.0823893
A86: 14100 | B86: 85.79799073 | D86: 14100 | E86: 48.46469817
A87: 14200 | B87: 84.39968449 | D87: 14200 | E87: 47.86331741
A88: 14300 | B88: 83.04324993 | D88: 14300 | E88: 47.27765449
A89: 14400 | B89: 81.72700428 | D89: 14400 | E89: 46.70714383
A90: 14500 | B90: 80.44934825 | D90: 14500 | E90: 46.15124536
A91: 14600 | B91: 79.20876108 | D91: 14600 | E91: 45.60944315
A92: 14700 | B92: 78.00379606 | D92: 14700 | E92: 45.08124412
A93: 14800 | B93: 76.83307625 | D93: 14800 | E93: 44.56617681
A94: 14900 | B94: 75.69529052 | D94: 14900 | E94: 44.06379031
A95: 15000 | B95: 74.58918982 | D95: 15000 | E95: 43.57365312
A96: 15100 | B96: 73.51358373 | D96: 15100 | E96: 43.0953522
A97: 15200 | B97: 72.46733721 | D97: 15200 | E97: 42.62849203
A98: 15300 | B98: 71.44936752 | D98: 15300 | E98: 42.1726937
A99: 15400 | B99: 70.45864142 | D99: 15400 | E99: 41.72759406
A100: 15500 | B100: 69.49417249 | D100: 15500 | E100: 41.292845
A101: 15600 | B101: =8.32*EXP((3.29*10000)/A101) -> 68.55501858 | D101: =+A101 -> 15600 | E101: =8.23*EXP((2.5*10000)/D101) -> 40.86811265
A102: 15700 | B102: 67.64027949 | D102: 15700 | E102: 40.45307671
A103: 15800 | B103: 66.74909478 | D103: 15800 | E103: 40.04742976
A104: 15900 | B104: 65.88064164 | D104: 15900 | E104: 39.6508767
A105: 16000 | B105: 65.03413298 | D105: 16000 | E105: 39.26313409
A106: 16100 | B106: 64.20881559 | D106: 16100 | E106: 38.88392965
A107: 16200 | B107: 63.40396839 | D107: 16200 | E107: 38.51300172
A108: 16300 | B108: 62.61890084 | D108: 16300 | E108: 38.15009874
A109: 16400 | B109: 61.85295137 | D109: 16400 | E109: 37.79497883
A110: 16500 | B110: 61.10548596 | D110: 16500 | E110: 37.44740929
A111: 16600 | B111: 60.3758968 | D111: 16600 | E111: 37.10716624
A112: 16700 | B112: 59.66360095 | D112: 16700 | E112: 36.77403416
A113: 16800 | B113: 58.96803917 | D113: 16800 | E113: 36.44780557
A114: 16900 | B114: 58.28867479 | D114: 16900 | E114: 36.12828063
A115: 17000 | B115: 57.62499258 | D115: 17000 | E115: 35.81526682
A116: 17100 | B116: 56.97649777 | D116: 17100 | E116: 35.50857863
A117: 17200 | B117: 56.34271509 | D117: 17200 | E117: 35.20803722
A118: 17300 | B118: 55.72318783 | D118: 17300 | E118: 34.91347018
A119: 17400 | B119: 55.11747699 | D119: 17400 | E119: 34.62471121
A120: 17500 | B120: 54.52516045 | D120: 17500 | E120: 34.34159986
A121: 17600 | B121: 53.94583225 | D121: 17600 | E121: 34.06398133
A122: 17700 | B122: 53.37910178 | D122: 17700 | E122: 33.79170618
A123: 17800 | B123: 52.82459315 | D123: 17800 | E123: 33.52463014
A124: 17900 | B124: 52.28194448 | D124: 17900 | E124: 33.26261386
A125: 18000 | B125: 51.75080733 | D125: 18000 | E125: 33.00552275
A126: 18100 | B126: 51.23084606 | D126: 18100 | E126: 32.75322676
A127: 18200 | B127: 50.72173731 | D127: 18200 | E127: 32.5056002
A128: 18300 | B128: 50.22316942 | D128: 18300 | E128: 32.26252156
A129: 18400 | B129: 49.73484197 | D129: 18400 | E129: 32.02387335
A130: 18500 | B130: 49.25646525 | D130: 18500 | E130: 31.78954194
A131: 18600 | B131: 48.78775987 | D131: 18600 | E131: 31.55941741
A132: 18700 | B132: 48.32845626 | D132: 18700 | E132: 31.33339339
A133: 18800 | B133: =8.32*EXP((3.29*10000)/A133) -> 47.87829426 | D133: =+A133 -> 18800 | E133: =8.23*EXP((2.5*10000)/D133) -> 31.11136694
A134: 18900 | B134: 47.4370228 | D134: 18900 | E134: 30.89323838
A135: 19000 | B135: 47.00439943 | D135: 19000 | E135: 30.67891124
A136: 19100 | B136: 46.58019002 | D136: 19100 | E136: 30.46829206
A137: 19200 | B137: 46.1641684 | D137: 19200 | E137: 30.2612903
A138: 19300 | B138: 45.75611607 | D138: 19300 | E138: 30.05781826
A139: 19400 | B139: 45.35582181 | D139: 19400 | E139: 29.85779093
A140: 19500 | B140: 44.9630815 | D140: 19500 | E140: 29.66112592
A141: 19600 | B141: 44.57769775 | D141: 19600 | E141: 29.46774333
A142: 19700 | B142: 44.19947964 | D142: 19700 | E142: 29.27756572
A143: 19800 | B143: 43.82824254 | D143: 19800 | E143: 29.09051795
A144: 19900 | B144: 43.46380777 | D144: 19900 | E144: 28.90652713
A145: 20000 | B145: 43.10600243 | D145: 20000 | E145: 28.72552254
